[Event "*** Titled Tuesday Blitz"]
[Site "Chess.com"]
[Date "2020.02.04"]
[Round "1"]
[White "TristanCalistri"]
[Black "Vugar_Manafov"]
[Result "1-0"]
[WhiteElo "2257"]
[BlackElo "2570"]
[TimeControl "180+2"]
[EndTime "13:07:23 PST"]
[Termination "TristanCalistri won by resignation"]

1. e4 {[%clk 0:02:58.5]} 1... Nf6 {[%clk 0:02:59.7]} 2. e5 {[%clk 0:02:58.7]}
2... Nd5 {[%clk 0:03:00.9]} 3. Nc3 {[%clk 0:03:00.3]} 3... Nxc3 {[%clk
0:03:02.1]} 4. bxc3 {[%clk 0:03:02.2]} 4... d5 {[%clk 0:03:04]} 5. d4 {[%clk
0:03:02.7]} 5... c5 {[%clk 0:03:05.5]} 6. Be2 {[%clk 0:03:04.1]} 6... Nc6 {[%clk
0:03:06.9]} 7. Nf3 {[%clk 0:03:05.7]} 7... Bg4 {[%clk 0:03:08.1]} 8. Rb1 {[%clk
0:03:07.2]} 8... Qc7 {[%clk 0:03:03.3]} 9. e6 {[%clk 0:02:53.8]} 9... Bxe6
{[%clk 0:03:01.6]} 10. Ng5 {[%clk 0:02:54.4]} 10... Bf5 {[%clk 0:02:57.4]} 11.
Bg4 {[%clk 0:02:41.8]} 11... Bxg4 {[%clk 0:02:50.6]} 12. Qxg4 {[%clk 0:02:39.9]}
12... e6 {[%clk 0:02:49.9]} 13. Bf4 {[%clk 0:02:32.9]} 13... Bd6 {[%clk
0:02:42.3]} 14. Bxd6 {[%clk 0:02:28.2]} 14... Qxd6 {[%clk 0:02:44.2]} 15. Rxb7
{[%clk 0:02:24.9]} 15... Nd8 {[%clk 0:02:30.2]} 16. Rb5 {[%clk 0:01:13.1]} 16...
cxd4 {[%clk 0:02:29.1]} 17. cxd4 {[%clk 0:01:14.2]} 17... h6 {[%clk 0:02:29.9]}
18. Nf3 {[%clk 0:01:10.9]} 18... O-O {[%clk 0:02:30.2]} 19. O-O {[%clk
0:01:09.9]} 19... Nc6 {[%clk 0:02:31.5]} 20. Rfb1 {[%clk 0:01:08.4]} 20... Rab8
{[%clk 0:02:32.9]} 21. g3 {[%clk 0:00:57.2]} 21... a6 {[%clk 0:02:33.6]} 22. Rb6
{[%clk 0:00:55.7]} 22... Qc7 {[%clk 0:02:34.7]} 23. R6b3 {[%clk 0:00:53.5]}
23... Na5 {[%clk 0:02:32.9]} 24. Rxb8 {[%clk 0:00:51.7]} 24... Rxb8 {[%clk
0:02:24.5]} 25. Rxb8+ {[%clk 0:00:51]} 25... Qxb8 {[%clk 0:02:26.4]} 26. Ne5
{[%clk 0:00:44.1]} 26... Qb1+ {[%clk 0:02:25]} 27. Kg2 {[%clk 0:00:44.2]} 27...
Qxc2 {[%clk 0:02:26.2]} 28. Nd7 {[%clk 0:00:24.6]} 28... Nc4 {[%clk 0:02:15.5]}
29. Qf4 {[%clk 0:00:19.2]} 29... Qb1 {[%clk 0:02:04.4]} 30. Qc7 {[%clk
0:00:16.6]} 30... Qe4+ {[%clk 0:01:48]} 31. Kg1 {[%clk 0:00:17.3]} 31... Qe1+
{[%clk 0:01:45.2]} 32. Kg2 {[%clk 0:00:18.6]} 32... Qe4+ {[%clk 0:01:46.5]} 33.
Kg1 {[%clk 0:00:19.9]} 33... Kh7 {[%clk 0:01:46.9]} 34. Nf8+ {[%clk 0:00:19.4]}
34... Kg8 {[%clk 0:01:48]} 35. Qd8 {[%clk 0:00:19.5]} 35... Qb1+ {[%clk
0:01:48.7]} 36. Kg2 {[%clk 0:00:19.8]} 36... Qe4+ {[%clk 0:01:50.4]} 37. Kg1
{[%clk 0:00:21]} 37... g5 {[%clk 0:01:48.5]} 38. Nd7+ {[%clk 0:00:18.6]} 38...
Kg7 {[%clk 0:01:48.5]} 39. Qf8+ {[%clk 0:00:19.8]} 39... Kg6 {[%clk 0:01:49.8]}
40. Qg8+ {[%clk 0:00:20.3]} 40... Kf5 {[%clk 0:01:49.1]} 41. Qxf7+ {[%clk
0:00:20.5]} 41... Kg4 {[%clk 0:01:49.2]} 42. Nf6+ {[%clk 0:00:21.5]} 1-0

[Event "*** Titled Tuesday Blitz"]
[Site "Chess.com"]
[Date "2020.02.04"]
[Round "1"]
[White "Tayson_7"]
[Black "bsnsun"]
[Result "1-0"]
[WhiteElo "2659"]
[BlackElo "2324"]
[TimeControl "180+2"]
[EndTime "13:07:26 PST"]
[Termination "Tayson_7 won by resignation"]

1. e4 {[%clk 0:02:59.1]} 1... c5 {[%clk 0:02:59.5]} 2. Nf3 {[%clk 0:03:00.5]}
2... d6 {[%clk 0:02:59.5]} 3. d4 {[%clk 0:03:01.8]} 3... cxd4 {[%clk 0:03:01.2]}
4. Nxd4 {[%clk 0:03:03.5]} 4... Nf6 {[%clk 0:03:02.6]} 5. Nc3 {[%clk 0:03:04.8]}
5... a6 {[%clk 0:03:04.1]} 6. h3 {[%clk 0:03:04.5]} 6... e6 {[%clk 0:03:03.1]}
7. g4 {[%clk 0:03:05]} 7... h6 {[%clk 0:03:04.5]} 8. Bg2 {[%clk 0:03:05.2]} 8...
g5 {[%clk 0:03:04.9]} 9. Be3 {[%clk 0:03:05]} 9... Nbd7 {[%clk 0:03:06]} 10. Qe2
{[%clk 0:03:06.2]} 10... Ne5 {[%clk 0:03:07]} 11. O-O-O {[%clk 0:03:07.1]} 11...
Qc7 {[%clk 0:03:08.1]} 12. f4 {[%clk 0:03:05.1]} 12... gxf4 {[%clk 0:03:08.7]}
13. Bxf4 {[%clk 0:03:07]} 13... Nfd7 {[%clk 0:03:06.9]} 14. Rhf1 {[%clk
0:03:06]} 14... b5 {[%clk 0:03:07.1]} 15. Kb1 {[%clk 0:02:23.9]} 15... Bb7
{[%clk 0:03:07.2]} 16. Qe1 {[%clk 0:02:25.1]} 16... Rc8 {[%clk 0:02:53]} 17.
Nce2 {[%clk 0:02:17.7]} 17... Nc4 {[%clk 0:02:29.4]} 18. Bc1 {[%clk 0:02:18]}
18... Nde5 {[%clk 0:02:28.4]} 19. b3 {[%clk 0:02:15.1]} 19... Nb6 {[%clk
0:02:24.7]} 20. Nf4 {[%clk 0:02:15]} 20... Be7 {[%clk 0:02:15.7]} 21. Bb2 {[%clk
0:02:13.4]} 21... Nbd7 {[%clk 0:01:47.5]} 22. Qf2 {[%clk 0:02:12.1]} 22... Qb6
{[%clk 0:01:37.8]} 23. Nh5 {[%clk 0:02:07.9]} 23... Rg8 {[%clk 0:01:34.7]} 24.
Qe2 {[%clk 0:01:50.8]} 24... b4 {[%clk 0:01:33.4]} 25. Nf3 {[%clk 0:01:48.7]}
25... Ng6 {[%clk 0:01:27.6]} 26. Qd2 {[%clk 0:01:45.1]} 26... Qc7 {[%clk
0:01:22.4]} 27. Rfe1 {[%clk 0:01:30.9]} 27... a5 {[%clk 0:01:21.4]} 28. Rc1
{[%clk 0:01:31.7]} 28... Nc5 {[%clk 0:01:11.6]} 29. Nd4 {[%clk 0:01:11.7]} 29...
Nd7 {[%clk 0:01:11.3]} 30. Qxh6 {[%clk 0:01:09.6]} 30... Bf8 {[%clk 0:00:59.3]}
31. Qd2 {[%clk 0:00:59.3]} 31... Be7 {[%clk 0:01:00.6]} 32. Rf1 {[%clk 0:00:58]}
32... Nh4 {[%clk 0:01:00.5]} 33. Bh1 {[%clk 0:00:56.6]} 33... Ne5 {[%clk
0:00:59.8]} 34. Nf6+ {[%clk 0:00:53.7]} 34... Bxf6 {[%clk 0:01:00.8]} 35. Rxf6
{[%clk 0:00:55.2]} 35... a4 {[%clk 0:00:59]} 36. Nb5 {[%clk 0:00:55.4]} 36...
Qc5 {[%clk 0:00:34.5]} 37. Nxd6+ {[%clk 0:00:55.2]} 37... Ke7 {[%clk 0:00:35.5]}
38. Bxe5 {[%clk 0:00:56.5]} 1-0

[Event "*** Titled Tuesday Blitz"]
[Site "Chess.com"]
[Date "2020.02.04"]
[Round "1"]
[White "Semajkcalbk"]
[Black "Dynamikus"]
[Result "0-1"]
[WhiteElo "2417"]
[BlackElo "2775"]
[TimeControl "180+2"]
[EndTime "13:07:29 PST"]
[Termination "Dynamikus won by resignation"]

1. g3 {[%clk 0:03:01.9]} 1... d5 {[%clk 0:03:00.3]} 2. Nf3 {[%clk 0:03:02]} 2...
c5 {[%clk 0:03:00.6]} 3. Bg2 {[%clk 0:03:02.6]} 3... Nf6 {[%clk 0:03:02.1]} 4.
b3 {[%clk 0:02:58.9]} 4... Nc6 {[%clk 0:03:02.1]} 5. Bb2 {[%clk 0:03:00]} 5...
e6 {[%clk 0:03:01.1]} 6. O-O {[%clk 0:02:59]} 6... Bd6 {[%clk 0:03:01.5]} 7. d3
{[%clk 0:02:59.1]} 7... O-O {[%clk 0:02:59.3]} 8. Nbd2 {[%clk 0:02:59.2]} 8...
e5 {[%clk 0:02:59.4]} 9. e4 {[%clk 0:02:53.7]} 9... d4 {[%clk 0:03:00.3]} 10.
Nh4 {[%clk 0:02:53.1]} 10... a6 {[%clk 0:02:54.9]} 11. Nf5 {[%clk 0:02:52]}
11... Bc7 {[%clk 0:02:54.7]} 12. g4 {[%clk 0:02:51.9]} 12... g6 {[%clk
0:02:46.9]} 13. Nh6+ {[%clk 0:02:39.5]} 13... Kg7 {[%clk 0:02:47.1]} 14. g5
{[%clk 0:02:40.6]} 14... Nh5 {[%clk 0:02:43.2]} 15. h4 {[%clk 0:02:39.3]} 15...
f6 {[%clk 0:02:38.1]} 16. Nf3 {[%clk 0:02:22.6]} 16... Nf4 {[%clk 0:02:36.4]}
17. Bc1 {[%clk 0:02:21.4]} 17... Nxg2 {[%clk 0:02:21.6]} 18. Kxg2 {[%clk
0:02:21.9]} 18... f5 {[%clk 0:02:23.2]} 19. exf5 {[%clk 0:02:03.2]} 19... gxf5
{[%clk 0:02:25.1]} 20. Re1 {[%clk 0:01:58.3]} 20... Qd5 {[%clk 0:02:20]} 21. Qe2
{[%clk 0:01:49.4]} 21... Bd7 {[%clk 0:02:21]} 22. Kg1 {[%clk 0:01:46.7]} 22...
Rae8 {[%clk 0:02:18.9]} 23. Nd2 {[%clk 0:01:48.1]} 23... e4 {[%clk 0:02:08]} 24.
dxe4 {[%clk 0:01:45.5]} 24... fxe4 {[%clk 0:02:09.9]} 25. Nxe4 {[%clk
0:01:46.3]} 25... Ne5 {[%clk 0:02:06.7]} 26. f4 {[%clk 0:01:44]} 26... Ng6
{[%clk 0:01:48.9]} 27. Bd2 {[%clk 0:01:09.9]} 27... Bc6 {[%clk 0:01:38.5]} 28.
f5 {[%clk 0:00:44.8]} 28... Nxh4 {[%clk 0:00:52.6]} 29. f6+ {[%clk 0:00:41.5]}
29... Kh8 {[%clk 0:00:53.4]} 30. Qg4 {[%clk 0:00:18]} 30... Rxe4 {[%clk
0:00:52.9]} 31. Rxe4 {[%clk 0:00:18.3]} 31... Qxe4 {[%clk 0:00:54.8]} 32. Nf7+
{[%clk 0:00:17.8]} 32... Rxf7 {[%clk 0:00:49.6]} 33. Qc8+ {[%clk 0:00:18.4]}
33... Qe8 {[%clk 0:00:49.5]} 0-1

[Event "*** Titled Tuesday Blitz"]
[Site "Chess.com"]
[Date "2020.02.04"]
[Round "1"]
[White "icychess54"]
[Black "vellottiwizard"]
[Result "0-1"]
[WhiteElo "2402"]
[BlackElo "2746"]
[TimeControl "180+2"]
[EndTime "13:07:31 PST"]
[Termination "vellottiwizard won by resignation"]

1. c4 {[%clk 0:03:01.9]} 1... e5 {[%clk 0:02:59.5]} 2. Nc3 {[%clk 0:03:03.1]}
2... Nc6 {[%clk 0:03:00.6]} 3. Nf3 {[%clk 0:03:04.5]} 3... g6 {[%clk 0:03:01.8]}
4. e3 {[%clk 0:03:06]} 4... f5 {[%clk 0:03:02.5]} 5. Be2 {[%clk 0:03:06.7]} 5...
Bg7 {[%clk 0:03:03.3]} 6. O-O {[%clk 0:03:08.2]} 6... Nf6 {[%clk 0:03:04.9]} 7.
b3 {[%clk 0:03:09.6]} 7... O-O {[%clk 0:03:06.1]} 8. Bb2 {[%clk 0:03:11.2]} 8...
d6 {[%clk 0:03:07.7]} 9. d4 {[%clk 0:03:12.7]} 9... e4 {[%clk 0:03:08.8]} 10.
Nd2 {[%clk 0:03:14.3]} 10... Ne7 {[%clk 0:03:10]} 11. b4 {[%clk 0:03:14.9]}
11... c6 {[%clk 0:03:11.1]} 12. a4 {[%clk 0:03:15.1]} 12... Be6 {[%clk
0:03:12.3]} 13. b5 {[%clk 0:03:13.5]} 13... Qd7 {[%clk 0:03:13.5]} 14. Ba3
{[%clk 0:03:02.5]} 14... Rf7 {[%clk 0:03:09.6]} 15. a5 {[%clk 0:03:01.8]} 15...
a6 {[%clk 0:02:54.2]} 16. bxa6 {[%clk 0:02:51.2]} 16... Rxa6 {[%clk 0:02:40.3]}
17. d5 {[%clk 0:02:42.7]} 17... cxd5 {[%clk 0:02:40.2]} 18. cxd5 {[%clk
0:02:43.8]} 18... Nfxd5 {[%clk 0:02:41.2]} 19. Nxd5 {[%clk 0:02:42.8]} 19...
Nxd5 {[%clk 0:02:34.8]} 20. Bxa6 {[%clk 0:02:32.2]} 20... Bxa1 {[%clk
0:02:34.5]} 21. Bc4 {[%clk 0:02:21.1]} 21... Be5 {[%clk 0:02:29.9]} 22. Nxe4
{[%clk 0:02:13]} 22... Nxe3 {[%clk 0:02:23.5]} 23. Bxe6 {[%clk 0:02:05.6]} 23...
Qxe6 {[%clk 0:02:23.9]} 24. fxe3 {[%clk 0:01:05.4]} 24... fxe4 {[%clk
0:02:23.2]} 25. Rxf7 {[%clk 0:00:56.3]} 25... Kxf7 {[%clk 0:02:25.1]} 26. Qc2
{[%clk 0:00:46.4]} 26... Qd5 {[%clk 0:02:18.8]} 27. Qc7+ {[%clk 0:00:30]} 27...
Kf6 {[%clk 0:01:31.6]} 28. Qd8+ {[%clk 0:00:26.9]} 28... Kf5 {[%clk 0:01:30.6]}
29. Qd7+ {[%clk 0:00:24.6]} 29... Kg5 {[%clk 0:01:30.7]} 30. h4+ {[%clk
0:00:13.7]} 30... Kh6 {[%clk 0:01:24.5]} 31. Qd8 {[%clk 0:00:06.4]} 31... Qd1+
{[%clk 0:01:23.4]} 32. Kf2 {[%clk 0:00:07.7]} 32... Qg4 {[%clk 0:01:10.6]} 33.
Qf8+ {[%clk 0:00:07.8]} 33... Kh5 {[%clk 0:01:11.5]} 34. Bxd6 {[%clk 0:00:09]}
34... Qg3+ {[%clk 0:01:12.3]} 35. Ke2 {[%clk 0:00:08.7]} 35... Bxd6 {[%clk
0:01:13]} 36. Qf7 {[%clk 0:00:05.7]} 36... Qxg2+ {[%clk 0:01:11.7]} 37. Kd1
{[%clk 0:00:06.8]} 37... Qf3+ {[%clk 0:01:13]} 38. Qxf3+ {[%clk 0:00:04.5]}
38... exf3 {[%clk 0:01:14.9]} 39. a6 {[%clk 0:00:05.6]} 39... bxa6 {[%clk
0:01:15.4]} 0-1

[Event "*** Titled Tuesday Blitz"]
[Site "Chess.com"]
[Date "2020.02.04"]
[Round "1"]
[White "severomorskij"]
[Black "cukus"]
[Result "0-1"]
[WhiteElo "2801"]
[BlackElo "2470"]
[TimeControl "180+2"]
[EndTime "13:07:33 PST"]
[Termination "cukus won by resignation"]

1. d4 {[%clk 0:02:56.2]} 1... Nf6 {[%clk 0:03:00.2]} 2. c4 {[%clk 0:02:55.7]}
2... g6 {[%clk 0:03:01.5]} 3. Nc3 {[%clk 0:02:55]} 3... d5 {[%clk 0:03:02.6]} 4.
Bg5 {[%clk 0:02:52]} 4... Ne4 {[%clk 0:03:00.5]} 5. Bh4 {[%clk 0:02:50.8]} 5...
Nxc3 {[%clk 0:03:01.3]} 6. bxc3 {[%clk 0:02:52.7]} 6... dxc4 {[%clk 0:03:01.2]}
7. e3 {[%clk 0:02:53.6]} 7... Be6 {[%clk 0:03:01.8]} 8. Qb1 {[%clk 0:02:39.9]}
8... Nd7 {[%clk 0:02:56]} 9. Qxb7 {[%clk 0:02:33.9]} 9... Bg7 {[%clk 0:02:55.7]}
10. Nf3 {[%clk 0:02:18.9]} 10... O-O {[%clk 0:02:55.6]} 11. Qc6 {[%clk
0:02:10.3]} 11... Rb8 {[%clk 0:02:48.3]} 12. Be2 {[%clk 0:01:33.1]} 12... h6
{[%clk 0:02:35.6]} 13. O-O {[%clk 0:01:31.5]} 13... Rb6 {[%clk 0:02:31.9]} 14.
Qa4 {[%clk 0:01:31.1]} 14... g5 {[%clk 0:02:28.3]} 15. Bg3 {[%clk 0:01:31]}
15... Rb2 {[%clk 0:02:12.9]} 16. Rfe1 {[%clk 0:01:21.6]} 16... c5 {[%clk
0:01:58.3]} 17. Qxa7 {[%clk 0:01:10.6]} 17... cxd4 {[%clk 0:01:58]} 18. Nxd4
{[%clk 0:01:09.4]} 18... Bd5 {[%clk 0:01:58.2]} 19. Rad1 {[%clk 0:00:47.8]}
19... e6 {[%clk 0:01:50.9]} 20. Qa3 {[%clk 0:00:31.6]} 20... Qb6 {[%clk
0:01:43.4]} 21. Bf1 {[%clk 0:00:29.4]} 21... Ra8 {[%clk 0:01:40.3]} 22. Qe7
{[%clk 0:00:18.9]} 22... Qb7 {[%clk 0:01:36.3]} 23. e4 {[%clk 0:00:18.4]} 23...
Bf8 {[%clk 0:01:33.9]} 24. Qxd7 {[%clk 0:00:17.5]} 24... Qxd7 {[%clk 0:01:34.2]}
25. exd5 {[%clk 0:00:18.7]} 25... exd5 {[%clk 0:01:35.6]} 26. h3 {[%clk
0:00:16]} 26... Raxa2 {[%clk 0:01:27.6]} 27. Be2 {[%clk 0:00:16.8]} 27... f5
{[%clk 0:01:22.7]} 28. Be5 {[%clk 0:00:15.1]} 28... Bc5 {[%clk 0:01:18.5]} 29.
f4 {[%clk 0:00:13.5]} 29... Bxd4+ {[%clk 0:01:17.1]} 30. Bxd4 {[%clk 0:00:10.7]}
30... Rxe2 {[%clk 0:01:18.3]} 31. Rxe2 {[%clk 0:00:12.1]} 31... Rxe2 {[%clk
0:01:20.2]} 32. Ra1 {[%clk 0:00:12.8]} 32... Re8 {[%clk 0:01:14.5]} 33. Ra7
{[%clk 0:00:13.1]} 33... Qe6 {[%clk 0:01:09.2]} 34. Rg7+ {[%clk 0:00:13.1]}
34... Kf8 {[%clk 0:01:10.7]} 35. fxg5 {[%clk 0:00:14.6]} 35... f4 {[%clk
0:01:02.4]} 36. g6 {[%clk 0:00:12.8]} 36... Qe1+ {[%clk 0:01:01.2]} 0-1

[Event "*** Titled Tuesday Blitz"]
[Site "Chess.com"]
[Date "2020.02.04"]
[Round "1"]
[White "StoreySniper"]
[Black "mbojan"]
[Result "0-1"]
[WhiteElo "2413"]
[BlackElo "2759"]
[TimeControl "180+2"]
[EndTime "13:07:43 PST"]
[Termination "mbojan won by resignation"]

1. d4 {[%clk 0:02:59.4]} 1... Nf6 {[%clk 0:03:00.7]} 2. Bf4 {[%clk 0:03:00.4]}
2... g6 {[%clk 0:03:00.9]} 3. Nd2 {[%clk 0:03:00.2]} 3... Bg7 {[%clk 0:03:01.4]}
4. e3 {[%clk 0:03:01.3]} 4... O-O {[%clk 0:03:02.4]} 5. Be2 {[%clk 0:03:01.3]}
5... c5 {[%clk 0:03:01.3]} 6. c3 {[%clk 0:03:02.4]} 6... b6 {[%clk 0:03:02.4]}
7. Bf3 {[%clk 0:03:00.4]} 7... d5 {[%clk 0:02:58.6]} 8. h4 {[%clk 0:02:58.1]}
8... h5 {[%clk 0:02:51.1]} 9. Nh3 {[%clk 0:02:43.5]} 9... Nc6 {[%clk 0:02:51.3]}
10. Ng5 {[%clk 0:02:43.8]} 10... Bg4 {[%clk 0:02:47]} 11. Bxg4 {[%clk 0:02:44]}
11... Nxg4 {[%clk 0:02:48.1]} 12. f3 {[%clk 0:02:22]} 12... Nh6 {[%clk
0:02:18.2]} 13. Qa4 {[%clk 0:02:21.3]} 13... e5 {[%clk 0:02:11.1]} 14. dxe5
{[%clk 0:02:05.7]} 14... Nxe5 {[%clk 0:02:11.2]} 15. Bxe5 {[%clk 0:02:06.7]}
15... Bxe5 {[%clk 0:02:12]} 16. O-O-O {[%clk 0:02:00.5]} 16... Nf5 {[%clk
0:02:05.3]} 17. Nf1 {[%clk 0:01:57.6]} 17... d4 {[%clk 0:01:55.4]} 18. cxd4
{[%clk 0:01:47.1]} 18... cxd4 {[%clk 0:01:56.3]} 19. e4 {[%clk 0:01:48.4]} 19...
Nxh4 {[%clk 0:01:57.3]} 20. Nh3 {[%clk 0:01:36.3]} 20... Nxg2 {[%clk 0:01:48.8]}
21. Kb1 {[%clk 0:01:36.8]} 21... Qf6 {[%clk 0:01:46]} 22. Nd2 {[%clk 0:01:29.1]}
22... Nf4 {[%clk 0:01:26]} 23. Nc4 {[%clk 0:01:26.5]} 23... Rac8 {[%clk
0:01:13.3]} 24. Nxe5 {[%clk 0:01:17.4]} 24... Qxe5 {[%clk 0:01:15.2]} 25. Qxd4
{[%clk 0:01:12.3]} 25... Qxd4 {[%clk 0:01:15.8]} 26. Rxd4 {[%clk 0:01:13.4]}
26... Nxh3 {[%clk 0:01:16.9]} 27. Rxh3 {[%clk 0:01:14.4]} 27... Rfd8 {[%clk
0:01:18.3]} 28. Rxd8+ {[%clk 0:01:10.2]} 28... Rxd8 {[%clk 0:01:20.2]} 29. Kc2
{[%clk 0:01:10.1]} 29... Kg7 {[%clk 0:01:21.5]} 30. f4 {[%clk 0:01:10.7]} 30...
Rd4 {[%clk 0:01:11.3]} 31. Re3 {[%clk 0:01:10.6]} 31... f5 {[%clk 0:01:12.2]}
32. exf5 {[%clk 0:01:11.8]} 32... gxf5 {[%clk 0:01:13.2]} 33. Re7+ {[%clk
0:01:07.4]} 33... Kf6 {[%clk 0:01:14.3]} 34. Rxa7 {[%clk 0:01:08.4]} 34... Rxf4
{[%clk 0:01:15.2]} 35. Rb7 {[%clk 0:01:03.7]} 35... h4 {[%clk 0:01:15.9]} 36.
Rxb6+ {[%clk 0:01:04.9]} 36... Kg5 {[%clk 0:01:17.3]} 37. Rb8 {[%clk 0:01:01]}
37... h3 {[%clk 0:01:18.5]} 38. Rg8+ {[%clk 0:01:01.5]} 38... Kh4 {[%clk
0:01:19.7]} 39. Rh8+ {[%clk 0:00:58.3]} 39... Kg3 {[%clk 0:01:20.7]} 40. Rg8+
{[%clk 0:00:45.8]} 40... Rg4 {[%clk 0:01:21.7]} 41. Rd8 {[%clk 0:00:45.8]} 41...
h2 {[%clk 0:01:20.6]} 42. Rd1 {[%clk 0:00:40.9]} 42... f4 {[%clk 0:01:17.8]} 43.
b4 {[%clk 0:00:41.5]} 43... Kg2 {[%clk 0:01:17.3]} 44. Rd2+ {[%clk 0:00:41.7]}
44... Kh3 {[%clk 0:01:18.5]} 0-1

[Event "*** Titled Tuesday Blitz"]
[Site "Chess.com"]
[Date "2020.02.04"]
[Round "1"]
[White "vlad_Sid"]
[Black "reigningmvp"]
[Result "1-0"]
[WhiteElo "2726"]
[BlackElo "2385"]
[TimeControl "180+2"]
[EndTime "13:07:43 PST"]
[Termination "vlad_Sid won by checkmate"]

1. c4 {[%clk 0:03:01.9]} 1... e5 {[%clk 0:02:59.5]} 2. g3 {[%clk 0:03:03.1]}
2... Nc6 {[%clk 0:02:59.8]} 3. Bg2 {[%clk 0:03:04.3]} 3... Bc5 {[%clk
0:03:00.9]} 4. Nc3 {[%clk 0:03:05.7]} 4... a6 {[%clk 0:03:01.7]} 5. e3 {[%clk
0:03:06.7]} 5... d6 {[%clk 0:03:02]} 6. Nge2 {[%clk 0:03:07.9]} 6... Ba7 {[%clk
0:03:02]} 7. a3 {[%clk 0:03:07.4]} 7... Be6 {[%clk 0:02:59.6]} 8. b3 {[%clk
0:03:07.3]} 8... Qd7 {[%clk 0:02:58.9]} 9. h3 {[%clk 0:03:04]} 9... Bf5 {[%clk
0:02:56]} 10. d4 {[%clk 0:03:02.1]} 10... h6 {[%clk 0:02:56.4]} 11. Bb2 {[%clk
0:03:01.9]} 11... Nge7 {[%clk 0:02:56.3]} 12. Rc1 {[%clk 0:03:00]} 12... O-O
{[%clk 0:02:54.5]} 13. d5 {[%clk 0:02:40.1]} 13... Nd8 {[%clk 0:02:49.2]} 14. e4
{[%clk 0:02:40.7]} 14... Bh7 {[%clk 0:02:49.2]} 15. g4 {[%clk 0:02:41.9]} 15...
Ng6 {[%clk 0:02:47.9]} 16. Ng3 {[%clk 0:02:12.9]} 16... Nh4 {[%clk 0:02:31.6]}
17. Bf3 {[%clk 0:02:12.4]} 17... g6 {[%clk 0:02:32.5]} 18. Rg1 {[%clk
0:01:56.8]} 18... Kh8 {[%clk 0:02:32.6]} 19. Bh1 {[%clk 0:01:02.7]} 19... f5
{[%clk 0:02:32.8]} 20. gxf5 {[%clk 0:01:01.2]} 20... gxf5 {[%clk 0:02:27.7]} 21.
Qh5 {[%clk 0:00:52.8]} 21... fxe4 {[%clk 0:02:14.4]} 22. Ncxe4 {[%clk 0:00:47]}
22... Nf5 {[%clk 0:02:10.6]} 23. Nxf5 {[%clk 0:00:37.9]} 23... Qxf5 {[%clk
0:02:08.6]} 24. Qxh6 {[%clk 0:00:38.9]} 24... Bxf2+ {[%clk 0:02:05]} 25. Ke2
{[%clk 0:00:40]} 25... Bxg1 {[%clk 0:02:03.9]} 26. Rxg1 {[%clk 0:00:41.9]} 26...
Rg8 {[%clk 0:01:52.8]} 27. Rf1 {[%clk 0:00:38.6]} 27... Qg6 {[%clk 0:01:51]} 28.
Qh4 {[%clk 0:00:35.3]} 28... Nf7 {[%clk 0:01:47.2]} 29. Rf6 {[%clk 0:00:33]}
29... Qg7 {[%clk 0:01:42.3]} 30. Bc1 {[%clk 0:00:33]} 30... Raf8 {[%clk
0:01:37.1]} 31. Rf2 {[%clk 0:00:16.7]} 31... Nd8 {[%clk 0:01:25.8]} 32. Bh6
{[%clk 0:00:12.6]} 32... Rxf2+ {[%clk 0:01:24.5]} 33. Nxf2 {[%clk 0:00:14.5]}
33... Qg6 {[%clk 0:01:23]} 34. Be4 {[%clk 0:00:11.6]} 34... Qf7 {[%clk
0:01:23.2]} 35. Bg5 {[%clk 0:00:11.7]} 35... Qd7 {[%clk 0:01:08]} 36. Bf6+
{[%clk 0:00:11.3]} 36... Rg7 {[%clk 0:01:07.4]} 37. Qxh7# {[%clk 0:00:12.6]} 1-0

[Event "*** Titled Tuesday Blitz"]
[Site "Chess.com"]
[Date "2020.02.04"]
[Round "1"]
[White "Gordima"]
[Black "vanyakuba"]
[Result "1-0"]
[WhiteElo "2805"]
[BlackElo "2425"]
[TimeControl "180+2"]
[EndTime "13:07:45 PST"]
[Termination "Gordima won on time"]

1. d4 {[%clk 0:03:01.9]} 1... d5 {[%clk 0:02:57.6]} 2. c4 {[%clk 0:03:00.7]}
2... e6 {[%clk 0:02:58.5]} 3. Nc3 {[%clk 0:03:00.5]} 3... c5 {[%clk 0:02:58.5]}
4. cxd5 {[%clk 0:03:01]} 4... cxd4 {[%clk 0:02:59.6]} 5. Qa4+ {[%clk 0:03:02.3]}
5... Bd7 {[%clk 0:03:00.6]} 6. Qxd4 {[%clk 0:03:03]} 6... exd5 {[%clk
0:03:02.1]} 7. Qxd5 {[%clk 0:03:03.2]} 7... Nc6 {[%clk 0:03:03.3]} 8. Nf3 {[%clk
0:02:56.2]} 8... Nf6 {[%clk 0:03:04]} 9. Qb3 {[%clk 0:02:56.6]} 9... Bc5 {[%clk
0:03:04.2]} 10. e3 {[%clk 0:02:56.8]} 10... Qe7 {[%clk 0:03:04.2]} 11. Be2
{[%clk 0:02:51]} 11... O-O-O {[%clk 0:03:04.4]} 12. O-O {[%clk 0:02:44.1]} 12...
g5 {[%clk 0:02:33.6]} 13. Rd1 {[%clk 0:02:31.5]} 13... Be6 {[%clk 0:02:23.4]}
14. Qa4 {[%clk 0:02:13.8]} 14... Rxd1+ {[%clk 0:02:20.5]} 15. Nxd1 {[%clk
0:02:09]} 15... g4 {[%clk 0:01:45.9]} 16. Nd4 {[%clk 0:02:02.5]} 16... Bd7
{[%clk 0:01:35.3]} 17. Qc2 {[%clk 0:01:53.2]} 17... Kb8 {[%clk 0:01:24]} 18.
Nxc6+ {[%clk 0:01:33.4]} 18... Bxc6 {[%clk 0:01:25.9]} 19. Nc3 {[%clk
0:01:31.1]} 19... Rd8 {[%clk 0:01:12.1]} 20. Bd2 {[%clk 0:01:26.7]} 20... Ne4
{[%clk 0:01:10]} 21. Be1 {[%clk 0:01:25.6]} 21... g3 {[%clk 0:00:31.7]} 22. hxg3
{[%clk 0:01:08.3]} 22... Nxg3 {[%clk 0:00:32.4]} 23. Bd3 {[%clk 0:00:44.3]}
23... Qh4 {[%clk 0:00:16]} 24. fxg3 {[%clk 0:00:39.8]} 24... Bxe3+ {[%clk
0:00:15.9]} 25. Bf2 {[%clk 0:00:26.7]} 25... Qxg3 {[%clk 0:00:14.5]} 26. Be4
{[%clk 0:00:16.5]} 26... Rd2 {[%clk 0:00:02]} 27. Qxd2 {[%clk 0:00:17.5]} 27...
Bxd2 {[%clk 0:00:02.6]} 28. Bxg3+ {[%clk 0:00:18.9]} 1-0